[Event "SixDays Budapest January-IMA 2023"]
[Site "Budapest"]
[Date "2023.01.27"]
[Round "7.1"]
[White "Szeberenyi, Adam"]
[Black "Ongut, Tamas Gunes"]
[Result "1/2-1/2"]
[ECO "E10"]
[WhiteElo "2331"]
[BlackElo "2340"]
[Annotator "TA"]
[PlyCount "95"]
[EventDate "2023.01.23"]
[EventType "tourn"]
[EventCountry "HUN"]
[SourceTitle "playchess.com"]
[Source "ChessBase"]
[SourceQuality "1"]
[TimeControl "5400+30"]

{[%evp 11,95,15,-7,-21,16,9,9,9,8,0,0,0,0,-4,-3,-20,6,-16,-15,-32,-29,-46,-25,-38,-31,-31,-31,-31,-11,-11,-14,-12,-12,-10,-14,-8,-6,-16,-12,-16,-8,-14,-14,-7,-6,-54,0,0,-9,-34,-34,-30,-8,-32,-7,-56,-8,-8,-8,-16,-8,-8,-8,-26,-22,-36,-29,-33,-33,-51,-20,-20,-20,-40,-40,-40,-40,-47,-47,-47,-47,-47,-47,-61,-61,-61]} 1. d4 {[%emt 0:00:56]} Nf6 {[%emt 0:00:10][%cal Bg8f6,Bf6d5,Bd5c3][%mdl 32]} 2. c4 {[%emt 0:00:24]} e6 {[%emt 0:00:09]} 3. Nf3 {[%emt 0:00:37]} c5 {[%emt 0:00:16]} 4. Nc3 {[%emt 0:01:49]} cxd4 {[%emt 0:00:10]} 5. Nxd4 {[%emt 0:00:04]} d5 {[%emt 0:00:06]} 6. cxd5 {[%emt 0:03:39]} Nxd5 {[%emt 0:00:09]} 7. Ndb5 {[%emt 0:02:02] A32: Symmetrical English: 2 Nf3 Nf6 3 d4 cxd4 4 Nxd4 e6.} Nxc3 {[%emt 0:41:59][%csl Gc3][%cal Rd8d1] [#]} 8. Qxd8+ {[%emt 0:00:46]} Kxd8 {[%emt 0:00:55][%cal Be8d8,Bd8e7,Be7f7][%mdl 32]} 9. Nxc3 {[%emt 0:00:51] The position is equal.} Bd7 {[%emt 0:07:55] [#]} 10. Bd2 $146 {[%emt 0:12:52]} ({Predecessor:} 10. Bf4 Bc6 11. Rd1+ Nd7 12. h4 f6 13. Rh3 e5 14. Bc1 Ke8 15. e4 Nb6 16. Be2 {½-½ Szeberenyi,A (2370)-Pasztor,B (2226) Budapest FS12 IM 2020 (3)}) 10... Bc6 {[%emt 0:01:02]} 11. Rd1 {[%emt 0:08:27]} Nd7 {[%emt 0:00:21]} 12. e4 {[%emt 0:01:43]} Bc5 {[%emt 0:04:35]} 13. Be2 {[%emt 0:09:49]} Ke7 {[%emt 0:03:10]} 14. O-O {[%emt 0:07:05][%cal Ob2b4]} a6 {[%emt 0:10:53]} 15. Rfe1 {[%emt 0:02:12][%cal Ob2b4]} Rhd8 {[%emt 0:03:03]} 16. Bf4 {[%emt 0:09:35][%cal Oc3d5]} f6 {[%emt 0:00:42]} (16... Rac8 $5 {[%cal Rf7f6]}) 17. Nd5+ {[%emt 0:15:31]} Kf7 {[%emt 0:01:04]} ({But not} 17... exd5 18. exd5 Ne5 19. dxc6 bxc6 20. Rxd8 Rxd8 21. Bxa6 $16) 18. b4 {[%emt 0:01:45]} exd5 {[%emt 0:01:06]} (18... Bf8 {feels hotter.} 19. Nc7 Bxb4 20. Bc4 Ne5) 19. bxc5 {[%emt 0:00:18]} Nxc5 {[%emt 0:06:50]} (19... dxe4 $5 {[%cal Rd7c5]} 20. Bc7 Re8 $15) 20. exd5 {[%emt 0:02:56]} Bxd5 {[%emt 0:00:09]} 21. Bc7 {[%emt 0:02:46]} Rd7 {[%emt 0:00:07][%cal Od5a2]} 22. Bb6 {[%emt 0:00:23]} Na4 $1 {[%emt 0:00:50]} 23. Bg4 {[%emt 0:00:32] [#] aiming for Ba5.} Re7 {[%emt 0:02:42]} 24. Rxe7+ {[%emt 0:06:21]} Kxe7 {[%emt 0:01:27]} 25. Ba5 {[%emt 0:00:04] This pair of bishops is nice.} Bc6 {[%emt 0:01:28]} 26. Re1+ {[%emt 0:02:33]} Kf7 {[%emt 0:02:12]} 27. Be6+ {[%emt 0:00:04]} Kg6 {[%emt 0:00:15]} 28. f4 {[%emt 0:00:05]} (28. Bb3 $11) 28... h6 {[%emt 0:03:15]} (28... Nc5 $5 {[%cal Rc5e6]}) 29. f5+ {[%emt 0:00:50]} Kh7 $1 {[%emt 0:00:05]} 30. Bf7 {[%emt 0:01:34]} Nc5 {[%emt 0:01:06]} 31. Re7 {[%emt 0:00:25]} Nd7 {[%emt 0:00:20]} 32. Bc3 {[%emt 0:00:57]} Rd8 {[%emt 0:02:43]} 33. Be6 {[%emt 0:01:12]} (33. Be8 $11 {is superior.}) 33... Nc5 {[%emt 0:00:19]} (33... Kh8 $1 $15) 34. Bxf6 $11 {[%emt 0:01:29]} Nxe6 {[%emt 0:02:09]} 35. fxe6 {[%emt 0:00:37][%mdl 4096] Endgame KRB-KRB} Rd1+ {[%emt 0:02:24]} 36. Kf2 {[%emt 0:00:03]} Rd2+ {[%emt 0:01:16]} 37. Ke3 {[%emt 0:00:08]} (37. Kf1 $5 {[%cal Re7g7]} Kg6 38. Bc3 $15) 37... Rxg2 {[%emt 0:00:06]} 38. Be5 {[%emt 0:00:15]} Rg4 {[%emt 0:00:27] ...Re4+ would be deadly.} 39. Kd3 {[%emt 0:05:15]} Bd5 {[%emt 0:00:10]} 40. a4 {[%emt 0:00:55]} b6 {[%emt 0:01:24][%cal Ob6b5]} 41. Bd4 {[%emt 0:00:34]} Rg6 {[%emt 0:00:28]} 42. Bxb6 {[%emt 0:00:21]} Rxe6 {[%emt 0:01:00] Black is slightly better.} 43. Rxe6 {[%emt 0:00:07]} Bxe6 {[%emt 0:00:04] KB-KB} 44. a5 {[%emt 0:00:09]} g5 {[%emt 0:00:09]} 45. Ke3 {[%emt 0:00:05]} Bd5 {[%emt 0:00:09]} 46. Bc7 {[%emt 0:00:19]} Kg6 {[%emt 0:00:21]} 47. Kf2 {[%emt 0:00:10]} Kf5 {[%emt 0:00:10]} 48. Kg3 {[%emt 0:00:14] Weighted Error Value: White=0.10 (very precise) /Black=0.08 (flawless)} 1/2-1/2

[Event "SixDays Budapest January-IMA 2023"]
[Site "Budapest"]
[Date "2023.01.27"]
[Round "7.2"]
[White "Heimisson, Hilmir Freyr"]
[Black "Taragan, Uri"]
[Result "1-0"]
[ECO "C02"]
[WhiteElo "2321"]
[BlackElo "1733"]
[Annotator "TA"]
[PlyCount "93"]
[EventDate "2023.01.23"]
[EventType "tourn"]
[EventCountry "HUN"]
[SourceTitle "playchess.com"]
[Source "ChessBase"]
[SourceQuality "1"]
[TimeControl "5400+30"]

{[%evp 11,93,0,0,-28,-26,-40,-33,-32,-31,-41,0,0,0,0,0,0,0,0,73,75,83,81,79,76,83,81,93,79,154,127,139,135,223,214,216,224,219,220,220,226,214,222,222,220,210,208,224,206,217,224,221,216,220,225,229,213,213,201,207,206,212,176,328,163,422,364,356,343,401,385,350,262,459,454,29988,29989,29989,677,29990,29991,29997,29998,29998,29999]} 1. e4 {[%emt 0:01:17]} e6 {[%emt 0:00:08]} 2. d4 {[%emt 0:00:45]} d5 {[%emt 0:00:10]} 3. e5 {[%emt 0:00:07]} c5 {[%emt 0:00:07]} 4. c3 {[%emt 0:00:03]} Qb6 {[%emt 0:00:15]} 5. Nf3 {[%emt 0:00:18]} Nc6 {[%emt 0:00:05]} 6. Bd3 {[%emt 0:00:21]} cxd4 {[%emt 0:00:24]} 7. O-O $1 {[%emt 0:00:12][%mdl 4] now scores much better than the old 7.cxd4. C02: French: Advance Variation.} Bd7 {[%emt 0:00:09]} 8. Re1 {[%emt 0:01:20]} Nge7 {[%emt 0:03:35]} 9. h4 {[%emt 0:01:31] Black is slightly better.} Rc8 {[%emt 0:04:22]} 10. Nbd2 {[%emt 0:02:02]} Ng6 {[%emt 0:13:41]} 11. Nb3 $1 {[%emt 0:09:05]} dxc3 {[%emt 0:02:04]} 12. bxc3 {[%emt 0:06:59]} Qc7 {[%emt 0:07:47][%cal Rc6e5]} 13. Qe2 {[%emt 0:14:58]} Be7 {[%emt 0:16:36]} 14. h5 {[%emt 0:03:48]} Ngxe5 {[%emt 0:13:23]} 15. Nxe5 $16 {[%emt 0:10:56] White stays focused until the end.} Qxe5 {[%emt 0:00:17]} 16. Qxe5 {[%emt 0:00:07]} Nxe5 {[%emt 0:00:06]} 17. Rxe5 {[%emt 0:00:06]} Bf6 {[%emt 0:10:47]} 18. Re3 {[%emt 0:00:20]} Rxc3 {[%emt 0:00:27]} 19. Rb1 {[%emt 0:02:50][%cal Oh5h6]} d4 {[%emt 0:06:15] [#]} (19... Rc8 $142) 20. Rf3 $146 {[%emt 0:11:21]} ({Predecessor:} 20. Rg3 O-O 21. Bb2 Rfc8 22. Bxc3 dxc3 23. Rd1 Bc6 24. Bc2 Kf8 25. Re3 b6 26. Nd4 {1-0 Carlsen,M (2863)-Harikrishna,P (2732) Saint Louis Blitz 2020 (15)}) 20... Bc6 {[%emt 0:03:33]} 21. Rg3 {[%emt 0:01:41]} e5 {[%emt 0:06:03] [#]} (21... g6 $16 22. Bb2 Rxd3 23. Rxd3 Be4) 22. Bd2 $1 $18 {[%emt 0:04:59]} Rxd3 {[%emt 0:00:21]} 23. Rxd3 {[%emt 0:00:03]} Be4 {[%emt 0:00:02] [#]} 24. Nc5 {[%emt 0:00:12][%csl LRb7,LRe4][%mdl 64] Discovered Attack, Double Attack} Bxd3 {[%emt 0:00:06]} 25. Nxd3 {[%emt 0:00:07]} e4 {[%emt 0:03:37]} 26. Nc5 {[%emt 0:06:53]} e3 {[%emt 0:00:43]} 27. fxe3 {[%emt 0:00:06]} b6 {[%emt 0:00:57]} 28. Ne4 {[%emt 0:00:41] Nxf6+ is the strong threat.} Be5 {[%emt 0:00:25]} 29. Rb4 {[%emt 0:06:26]} dxe3 {[%emt 0:00:12]} 30. Bxe3 {[%emt 0:00:04]} Ke7 {[%emt 0:00:25]} 31. Ra4 {[%emt 0:00:46]} Bb8 {[%emt 0:01:20]} 32. Bd4 {[%emt 0:03:51]} Rg8 {[%emt 0:00:42]} 33. Kf2 {[%emt 0:00:58]} f6 {[%emt 0:01:59]} 34. g4 {[%emt 0:04:08]} Ke6 {[%emt 0:00:52]} 35. Kf3 {[%emt 0:01:45]} Rc8 {[%emt 0:02:46]} 36. g5 {[%emt 0:02:24][%cal Rg5f6]} fxg5 $2 {[%emt 0:01:18]} (36... Rc2 {is a better defense.} 37. gxf6 gxf6 38. Nxf6 (38. Bxf6 Rh2 $18) 38... Rh2) 37. Kg4 {[%emt 0:02:08]} (37. Bxg7 $6 Kf5 $18) (37. Nxg5+ $142 Kf5 38. Nxh7) 37... Kd5 $2 {[%emt 0:01:00]} (37... Rg8 38. Nxg5+ Kd5) 38. Nc3+ {[%emt 0:00:33]} (38. Nxg5 b5 39. Rb4 a5 40. Rxb5+ Kxd4 $14) 38... Ke6 {[%emt 0:00:28]} 39. Bxg7 {[%emt 0:00:16]} (39. Kxg5 Rc7 40. Kg4 Re7 $16) 39... a5 {[%emt 0:01:36]} 40. Re4+ {[%emt 0:00:41]} ({Don't take} 40. Kxg5 Rc6 41. Re4+ Kf7 $18) 40... Kf7 {[%emt 0:00:13]} 41. h6 {[%emt 0:00:33] And now Nd5 would win.} Bf4 $2 {[%emt 0:00:36]} (41... Bd6 42. Kxg5 b5) 42. Nd5 {[%emt 0:00:46][%csl LRb6,LRf4] Threatening mate with Re7+.} Rc2 {[%emt 0:01:06]} (42... Bd6 $18 43. Nxb6 Rc2) 43. Re7+ {[%emt 0:00:43]} Kg6 {[%emt 0:00:03]} 44. Re6+ {[%emt 0:00:16]} ({Not} 44. Nxb6 Rg2+ 45. Kf3 Rg3+ 46. Kf2 Ra3 $16) 44... Kf7 {[%emt 0:00:03]} 45. Kf5 {[%emt 0:00:09] White mates.} Rc5 {[%emt 0:00:34]} 46. Re7+ {[%emt 0:00:10]} Kg8 {[%emt 0:00:02]} 47. Re8+ {[%emt 0:00:06] Weighted Error Value: White=0.13 (very precise) /Black=0.42} 1-0

[Event "SixDays Budapest January-IMA 2023"]
[Site "Budapest"]
[Date "2023.01.27"]
[Round "7.3"]
[White "Magold, Filip"]
[Black "Polyik, Peter"]
[Result "1/2-1/2"]
[ECO "B67"]
[WhiteElo "2230"]
[BlackElo "2323"]
[Annotator "TA"]
[PlyCount "196"]
[EventDate "2023.01.23"]
[EventType "tourn"]
[EventCountry "HUN"]
[SourceTitle "playchess.com"]
[Source "ChessBase"]
[SourceQuality "1"]
[TimeControl "5400+30"]

{[%evp 18,196,33,7,29,12,19,2,30,20,35,35,40,-47,70,27,34,31,31,18,61,14,8,0,0,-22,0,0,0,-34,-39,-39,-20,-28,-36,-19,-14,-19,-22,-97,-100,-90,227,15,156,150,145,150,158,150,146,140,136,0,0,0,0,0,0,0,0,0,0,0,0,0,0,0,0,0,0,0,0,0,0,0,0,0,0,0,0,0,0,0,1566,8,8,8,8,8,8,8,8,0,8,8,8,8,8,8,8,0,0,0,8,8,8,8,8,64,64,64,119,0,119,0,119,119,119,119,119,64,64,8,8,8,8,8,8,8,8,8,8,8,8,8,8,8,8,8,8,8,8,8,8,0,8,8,8,0,0,0,0,0,0,0,0,0,0,0,0,0,8,0,8,0,0,0,0,0,0,0,8,8,8,0,0,0,0,0,0]} 1. e4 c5 {[%emt 0:02:48]} 2. Nf3 {[%emt 0:00:35]} d6 {[%emt 0:00:08]} 3. d4 {[%emt 0:00:13]} cxd4 {[%emt 0:00:09]} 4. Nxd4 {[%emt 0:00:05]} Nf6 {[%emt 0:00:05]} 5. Nc3 {[%emt 0:00:19]} Nc6 {[%emt 0:00:22]} 6. Bg5 {[%emt 0:00:32]} e6 {[%emt 0:00:08]} 7. Qd2 {[%emt 0:00:35]} a6 {[%emt 0:00:18]} 8. O-O-O {[%emt 0:01:10]} Bd7 {[%emt 0:00:10]} 9. Kb1 {[%emt 0:02:09]} Be7 {[%emt 0:04:51]} 10. f3 {[%emt 0:01:34]} Nxd4 $1 {[%emt 0:01:50][%mdl 4] is recently more successful than 10...Qc7. B67: Sicilian: Richter-Rauzer: 7...a6 8 0-0-0 Bd7, lines without 9 f4 Be7.} 11. Qxd4 {[%emt 0:00:07]} Qc7 {[%emt 0:00:37]} 12. g4 {[%emt 0:06:59]} h5 {[%emt 0:14:46]} 13. gxh5 {[%emt 0:03:20]} Nxh5 {[%emt 0:03:05]} 14. Bxe7 {[%emt 0:03:21]} Kxe7 {[%emt 0:00:07] [#]} 15. e5 {[%emt 0:00:02]} d5 {[%emt 0:06:02]} ({Black should play} 15... dxe5 $15 16. Qb4+ Ke8) 16. Rg1 {[%emt 0:24:49] [#]} g6 $146 {[%emt 0:06:05]} ({Predecessor:} 16... Bc6 17. Bh3 g6 18. Bg4 Kf8 19. f4 Ng7 20. Qf2 Qe7 21. h3 b5 22. Ne2 b4 {1-0 Durarbayli,V (2615)-Muradli,M (2523) AZE-ch Prelim 76th 2022 (2)}) 17. Bd3 {[%emt 0:00:53]} Rag8 {[%emt 0:01:24]} 18. Ne2 {[%emt 0:05:29]} b5 {[%emt 0:08:56] Black is weak on the dark squares} 19. Qh4+ {[%emt 0:06:20]} (19. Rg4 $14) 19... Ke8 $11 {[%emt 0:05:56][%cal Be7e8,Be8f8,Bf8g7][%mdl 32]} 20. a4 {[%emt 0:03:30]} Qxe5 {[%emt 0:05:11]} 21. Qb4 {[%emt 0:02:06][%cal Ra4b5]} Qf6 {[%emt 0:01:36]} (21... Qxh2 22. axb5 axb5 23. Nc3 $16 (23. Bxb5 Bxb5 24. Qxb5+ Kf8 $11)) (21... Qc7 $5 {[%cal Ra6a5]}) 22. axb5 {[%emt 0:06:45]} axb5 {[%emt 0:00:58]} 23. Rde1 {[%emt 0:01:13]} (23. Bxb5 Bxb5 24. Qxb5+ Kf8 $17) 23... Qe7 {[%emt 0:02:01]} 24. Qd4 {[%emt 0:02:55]} Kf8 {[%emt 0:00:40]} 25. f4 {[%emt 0:07:01]} Qf6 {[%emt 0:01:37]} 26. Qa7 {[%emt 0:01:27]} Qd8 {[%emt 0:09:04]} 27. Qc5+ {[%emt 0:05:20]} Kg7 {[%emt 0:03:04]} 28. f5 {[%emt 0:01:19]} (28. Qd6 $11) 28... exf5 $17 {[%emt 0:00:23]} (28... Nf6 $2 29. fxe6 Rh4 30. exd7 $18) 29. Nd4 {[%emt 0:00:52][%cal Oe1e7]} Nf4 $2 {[%emt 0:05:19][%mdl 8192]} (29... Re8 $17 {stays on course.} 30. Ref1 (30. Bxf5 $2 Rxe1+ 31. Rxe1 Bxf5 $19) (30. Nxf5+ Bxf5 31. Rxe8 Qxe8 $17) 30... f4) 30. Bxf5 $2 {[%emt 0:01:51]} ({White must play} 30. Qd6 $18 {Re7 is the strong threat.} Re8 31. Qxf4) 30... Rh5 {[%emt 0:01:18]} (30... Qc8 $1 $11 31. Qd6 Bxf5) 31. Bxd7 $16 {[%emt 0:00:58]} Qxd7 {[%emt 0:00:06]} 32. Re7 $1 {[%emt 0:00:16] White is more active.} (32. Qxb5 Qxb5 33. Nxb5 Rxh2 $17) (32. Nxb5 Ne6 33. Qb6 d4 $17) 32... Rc8 {[%emt 0:02:42]} 33. Rxd7 {[%emt 0:00:21] Qd6 would kill now.} Rxc5 {[%emt 0:00:06]} 34. Rf1 {[%emt 0:00:02]} g5 {[%emt 0:01:41][%cal Bg6g5,Bg5f4][%mdl 32] [#]} 35. Rxf4 {[%emt 0:00:08][%mdl 512]} gxf4 {[%emt 0:00:02][%mdl 4096] Endgame KRR-KRN} 36. Ne6+ {[%emt 0:00:05]} Kf6 {[%emt 0:00:35]} 37. Nxc5 $11 {[%emt 0:00:07] KRN-KR} f3 {[%emt 0:00:14]} 38. Nd3 {[%emt 0:03:02] Hoping for Kc1.} Rxh2 {[%emt 0:00:10]} 39. Rxd5 {[%emt 0:01:08] Strongly threatening Rd4.} (39. Rd6+ Ke7 40. Rxd5 f2 41. Nxf2 (41. Rxb5 f1=Q+ 42. Ka2 Rxc2 $19) 41... Rxf2 $11) 39... f2 {[%emt 0:01:57]} 40. Nxf2 {[%emt 0:00:05]} Rxf2 {[%emt 0:00:05]} 41. Rxb5 {[%emt 0:00:02] KR-KR} Ke6 {[%emt 0:00:19]} 42. b4 {[%emt 0:03:27]} f5 {[%emt 0:00:15]} 43. Rb8 {[%emt 0:00:57]} f4 {[%emt 0:02:53]} 44. Kb2 {[%emt 0:01:28]} Ke7 {[%emt 0:05:13]} 45. Rh8 {[%emt 0:05:24]} Rf1 {[%emt 0:00:22]} 46. b5 {[%emt 0:00:39]} f3 {[%emt 0:00:31]} 47. Rh4 {[%emt 0:01:03]} f2 {[%emt 0:01:28]} 48. Rf4 {[%emt 0:00:06]} Kd6 {[%emt 0:00:05]} 49. Rf5 {[%emt 0:01:01]} Rh1 {[%emt 0:01:50]} 50. Rxf2 {[%emt 0:00:07]} Rh5 {[%emt 0:00:05][%mdl 8192] Inhibits Rf5.} (50... Kc5 $11) 51. Rf6+ $2 {[%emt 0:01:05]} ({Only move:} 51. c4 $18 Kc5 52. Kb3) 51... Kc5 {[%emt 0:00:14]} 52. b6 {[%emt 0:00:20] Threatens to win with b7.} Rh7 {[%emt 0:00:51]} 53. Kb3 {[%emt 0:00:31]} Rh4 {[%emt 0:01:32]} 54. Ka3 {[%emt 0:01:28]} Rh3+ {[%emt 0:01:13]} 55. Kb2 {[%emt 0:00:27] b7 would be deadly.} Rh7 {[%emt 0:00:12]} 56. Kc3 {[%emt 0:00:16]} Rd7 {[%emt 0:01:41]} 57. Rg6 {[%emt 0:00:28]} Kb5 {[%emt 0:00:17]} 58. Kb3 {[%emt 0:00:57]} Kc5 {[%emt 0:00:05]} 59. Ka4 {[%emt 0:00:28] aiming for Ka5.} Rd1 $1 {[%emt 0:00:19]} 60. Kb3 {[%emt 0:00:22]} Rd7 {[%emt 0:00:07]} 61. Kb2 {[%emt 0:00:38]} Kb5 {[%emt 0:00:13]} 62. Kc1 {[%emt 0:00:24]} Kc5 {[%emt 0:00:07]} 63. Rh6 {[%emt 0:00:42]} ({White should try} 63. Re6 $11) 63... Kb5 {[%emt 0:00:06]} 64. Rf6 {[%emt 0:00:32]} Kc5 {[%emt 0:00:06]} (64... Re7 $14) 65. Kb2 {[%emt 0:00:27]} (65. Rg6 $16) 65... Kb5 {[%emt 0:00:16]} (65... Rh7 $11 {remains equal.}) 66. Kc3 {[%emt 0:00:21]} Kc5 {[%emt 0:00:13]} 67. Kb3 {[%emt 0:00:30]} Kb5 {[%emt 0:00:20]} 68. Rh6 {[%emt 0:00:32]} ({Reject} 68. c4+ $6 Kc5 $11) 68... Kc5 {[%emt 0:00:06]} 69. c3 {[%emt 0:00:31]} ({Much worse is} 69. c4 $6 Rb7 $11) (69. Kc3 $16) 69... Kb5 {[%emt 0:00:19]} 70. c4+ {[%emt 0:00:20]} ({Better is} 70. Kc2 $14) 70... Kc5 {[%emt 0:00:06] The position is equal.} 71. Rh5+ {[%emt 0:00:27]} Kxb6 {[%emt 0:00:08]} 72. Kb4 {[%emt 0:00:01]} Rg7 {[%emt 0:01:52]} 73. Rh6+ {[%emt 0:00:05]} Kc7 {[%emt 0:00:08]} 74. Kb5 {[%emt 0:00:09]} Rg1 {[%emt 0:00:27]} 75. Rh7+ {[%emt 0:00:07]} Kc8 {[%emt 0:00:02]} 76. Rh5 {[%emt 0:01:57]} Kc7 {[%emt 0:01:25]} 77. Kc5 {[%emt 0:00:04]} Rg6 {[%emt 0:00:14]} 78. Rh7+ {[%emt 0:00:19]} Kc8 {[%emt 0:00:02]} 79. Re7 {[%emt 0:00:21]} Rh6 {[%emt 0:00:39]} 80. Kd5 {[%emt 0:00:19]} Rg6 {[%emt 0:00:41]} 81. Re5 {[%emt 0:00:54]} Rh6 {[%emt 0:00:33]} 82. Kc5 {[%emt 0:01:04]} Kc7 {[%emt 0:00:11]} 83. Rd5 {[%emt 0:00:31]} Rc6+ {[%emt 0:00:24]} 84. Kb5 {[%emt 0:00:04] Threatening mate with Rc5.} Rb6+ {[%emt 0:00:04]} 85. Ka5 {[%emt 0:00:43][%cal Od5d7]} Rc6 {[%emt 0:00:06]} 86. Kb4 {[%emt 0:00:23]} Rb6+ {[%emt 0:00:09]} 87. Kc5 {[%emt 0:00:16][%cal Od5d7] White threatens Rd7+! and mate.} Rc6+ {[%emt 0:00:05]} 88. Kd4 {[%emt 0:00:03]} Rh6 {[%emt 0:00:05]} 89. Rg5 {[%emt 0:00:15]} Kc8 {[%emt 0:00:21]} 90. Kd5 {[%emt 0:00:25]} Kc7 {[%emt 0:00:08]} 91. Re5 {[%emt 0:00:17]} Rd6+ {[%emt 0:00:06]} 92. Ke4 {[%emt 0:00:08]} Rc6 {[%emt 0:00:07]} 93. c5 {[%emt 0:00:19]} Rh6 {[%emt 0:00:06]} 94. Kd5 {[%emt 0:00:02]} Rg6 {[%emt 0:00:24]} 95. Re7+ {[%emt 0:00:19]} Kc8 {[%emt 0:00:05]} 96. Re6 {[%emt 0:00:54]} Rxe6 {[%emt 0:00:10]} 97. Kxe6 {[%emt 0:00:07] Intending Kd6 and mate.} Kc7 {[%emt 0:00:02]} 98. c6 {[%emt 0:00:04]} Kxc6 {[%emt 0:00:03] Weighted Error Value: White=0.29 (precise) /Black=0.16 (very precise)} 1/2-1/2

[Event "SixDays Budapest January-IMA 2023"]
[Site "Budapest"]
[Date "2023.01.27"]
[Round "7.4"]
[White "Baski, Barnabas"]
[Black "Leszko, Bence"]
[Result "1/2-1/2"]
[ECO "A06"]
[WhiteElo "2188"]
[BlackElo "2298"]
[Annotator "TA"]
[PlyCount "110"]
[EventDate "2023.01.23"]
[EventType "tourn"]
[EventCountry "HUN"]
[SourceTitle "playchess.com"]
[Source "ChessBase"]
[SourceQuality "1"]
[TimeControl "5400+30"]

{[%evp 15,110,0,30,29,20,18,18,24,11,-17,30,-22,-10,-24,-31,-51,-19,-44,0,0,22,0,72,29,56,57,61,54,64,42,35,44,53,6,31,-17,-29,-28,-24,-31,7,7,8,5,79,36,68,58,72,0,0,-17,0,-81,-75,-75,0,0,0,0,0,0,0,0,0,0,0,0,0,0,0,0,0,0,0,0,0,0,0,0,0,0,0,0,0,0,0,0,0,0,0,0,0,0,0,0,0]} 1. Nf3 {[%emt 0:00:04]} d5 {[%emt 0:12:57]} 2. g3 {[%emt 0:00:12]} Nc6 {[%emt 0:00:05]} 3. d4 {[%emt 0:00:10]} Bf5 {[%emt 0:00:04]} 4. Bg2 {[%emt 0:00:24]} e6 {[%emt 0:00:05]} 5. O-O {[%emt 0:01:14]} Nb4 {[%emt 0:00:04]} 6. Na3 {[%emt 0:00:33]} Nc6 {[%emt 0:00:09]} 7. Nb1 {[%emt 0:01:32]} Nb4 {[%emt 0:00:04]} 8. Na3 {[%emt 0:00:07]} Be7 {[%emt 0:00:07]} 9. Ne5 {[%emt 0:04:44] 9.Re1 is a critical line. D02: 1 d4 d5 2 Nf3 sidelines, including 2...Nf6 3 g3 and 2...Nf6 3 Bf4.} f6 {[%emt 0:00:06]} 10. Nf3 {[%emt 0:01:04]} (10. g4 $5 {[%cal Rg4f5]}) 10... Qd7 {[%emt 0:00:01]} 11. c3 {[%emt 0:01:49]} Nc6 {[%emt 0:00:01] [#]} 12. Nc2 $146 {[%emt 0:00:36]} ({Predecessor:} 12. Nh4 Bg4 13. h3 Bh5 14. g4 Bf7 15. f4 f5 16. g5 h6 17. Qe1 Bh5 18. Nc2 Bd6 19. b4 Nge7 20. a4 hxg5 21. fxg5 Bxe2 22. Qxe2 Rxh4 {0-1 Padmini,R (2290)-Ushenina,A (2371) Wch Rapid (Women) 2022 (4)}) 12... g5 {[%emt 0:00:59]} (12... Be4 {is superior.}) 13. Ne3 {[%emt 0:05:53]} (13. Nd2 $142) 13... Be4 $1 $11 {[%emt 0:00:31]} 14. b4 {[%emt 0:06:28]} h5 {[%emt 0:00:47]} 15. b5 {[%emt 0:06:02]} Nd8 {[%emt 0:00:41]} 16. Qb3 {[%emt 0:06:31]} Nf7 {[%emt 0:03:31]} 17. c4 {[%emt 0:03:41]} Ngh6 {[%emt 0:02:48][%cal Oh5h4]} 18. a4 {[%emt 0:02:02]} Kf8 {[%emt 0:06:26]} (18... h4 $11 {remains equal.}) 19. Ba3 {[%emt 0:04:05] aiming for Bxe7+.} Bxa3 {[%emt 0:02:17]} 20. Qxa3+ {[%emt 0:00:12]} Kg7 {[%emt 0:00:53]} 21. Rac1 {[%emt 0:01:12]} a6 {[%emt 0:04:09]} 22. Qc3 {[%emt 0:10:26] And now cxd5 would win.} axb5 {[%emt 0:00:44]} 23. axb5 {[%emt 0:01:33]} Rac8 {[%emt 0:00:48]} 24. Rfd1 {[%emt 0:06:38]} (24. h4 $14) 24... Nd6 {[%emt 0:01:52]} 25. Qb3 {[%emt 0:11:05]} (25. h4 $14) 25... dxc4 {[%emt 0:03:48]} 26. Nxc4 {[%emt 0:00:14][%cal Of3e5]} Bd5 {[%emt 0:00:39]} (26... Nxb5 $2 27. Nfe5 fxe5 28. Bxe4 Nxd4 29. Qxb7 $18 (29. Nxe5 Nxb3 30. Rxd7+ Kf6 $11)) 27. Nfd2 {[%emt 0:00:27][%cal Bf3d2,Bd2c4,Bc4b6][%mdl 32]} Bxg2 {[%emt 0:00:40]} 28. Nxd6 {[%emt 0:02:24]} Bd5 $36 {[%emt 0:02:13][%mdl 2048] Black fights for an advantage.} 29. N6c4 {[%emt 0:00:07]} h4 {[%emt 0:00:36]} (29... Nf5 $11) 30. e4 $16 {[%emt 0:02:22]} Bxc4 {[%emt 0:00:04]} 31. Nxc4 {[%emt 0:00:22]} hxg3 {[%emt 0:01:43]} 32. Qxg3 {[%emt 0:02:25]} ({White should play} 32. hxg3 $16 Ng4 33. f3) 32... Nf7 $11 {[%emt 0:01:55]} 33. b6 {[%emt 0:04:08]} Rh4 {[%emt 0:04:55]} 34. f3 {[%emt 0:01:36]} (34. bxc7 $1 $11 {keeps the balance.} Rxc7 35. Rc2) 34... cxb6 $17 {[%emt 0:03:17] Threatens to win with ...b5.} 35. d5 {[%emt 0:02:39] [#]} exd5 {[%emt 0:02:34]} ({Black should try} 35... Rch8 $1 $17 {Strongly threatening ...Rxh2.} 36. Ne3 Rxh2) 36. Nxb6 $11 {[%emt 0:00:23] The position is equal.} Rxc1 {[%emt 0:01:18]} 37. Rxc1 {[%emt 0:00:08]} Qe6 {[%emt 0:04:47]} 38. Nxd5 {[%emt 0:00:18]} f5 {[%emt 0:12:21]} 39. Rc7 $1 {[%emt 0:02:08][%csl LRb7,LRg5]} Kf8 {[%emt 0:00:28]} 40. Re7 {[%emt 0:02:36]} Qc8 {[%emt 0:01:35] Prevents Qb8.} 41. Qc7 {[%emt 0:02:21] Chess con chili.} Qxc7 {[%emt 0:00:19]} 42. Rxc7 {[%emt 0:00:05]} fxe4 {[%emt 0:02:43]} 43. fxe4 {[%emt 0:00:23][%mdl 4096] Endgame KRN-KRN} b5 {[%emt 0:01:16]} 44. Rb7 {[%emt 0:01:03]} Rxe4 {[%emt 0:00:33]} 45. Rxb5 {[%emt 0:00:20]} Re2 {[%emt 0:00:48]} 46. Nc3 {[%emt 0:00:32]} Rc2 {[%emt 0:00:53] White must now prevent ...Rc1+.} 47. Ne4 {[%emt 0:01:59]} Rc4 {[%emt 0:00:09]} 48. Nd2 {[%emt 0:00:51]} Ra4 {[%emt 0:00:58]} 49. Nf3 {[%emt 0:01:06]} Kg7 {[%emt 0:00:47]} 50. Kg2 {[%emt 0:00:27]} g4 {[%emt 0:01:22]} 51. Nh4 {[%emt 0:01:20]} Kf6 {[%emt 0:01:20]} 52. Rf5+ {[%emt 0:01:04]} Ke6 {[%emt 0:00:02]} 53. h3 {[%emt 0:02:34]} Nd6 {[%emt 0:00:45]} 54. Rf2 {[%emt 0:00:38]} g3 {[%emt 0:05:01][%mdl 64] [#] Discovered Attack} 55. Re2+ {[%emt 0:00:10]} Re4 {[%emt 0:01:13] Weighted Error Value: White=0.17 (very precise) /Black=0.15 (very precise)} 1/2-1/2